Workbook

Sheet Start
A2: Komma igång med formler
A3: Med några få steg kommer du igång med att skapa formler och funktioner i Excel, världens mest kraftfulla kalkylbladsprogram.
A4: Tryck på CTRL+HOME om du vill gå tillbaka till början. Tryck på CTRL+PAGE DOWN när du vill starta introduktionen.

Sheet Grunderna
A1: Grunderna: matematik i Excel
A2: Du kan addera, subtrahera, multiplicera och dividera i Excel utan att använda inbyggda funktioner. Allt du behöver är de grundläggande operatorerna +, -, * och /. Alla formler inleds med ett likhetstecken (=). | C2: Nummer som kan användas: | E2: Operation: | F2: Formler: | G2: Svar:
A3: Addera genom att markera cell F3, skriva in =C3+C4 och trycka på RETUR. | C3: 1 | E3: Addition (+) | G3: =C3+C4 -> 3
A4: Subtrahera genom att markera cell F4, skriva in =C3-C4 och trycka på RETUR. | C4: 2 | E4: Subtraktion (-) | G4: =C3-C4 -> -1
A5: Multiplicera genom att markera cell F5, skriva in =C3*C4 och trycka på RETUR. | E5: Multiplikation (*) | G5: =C3*C4 -> 2
A6: Dividera genom att markera cell F6, skriva in =C3/C4 och trycka på RETUR. | E6: Division (/) | G6: =C3/C4 -> 0.5
A7: Kolla in det här: ändra talen i cellerna C3 och C4, och observera hur formelresultaten ändras automatiskt. | E7: Exponent (^) | G7: =C3^C4 -> 1
A8: BONUSUPPGIFT: Du kan ange en exponent till ett bastal med hjälp av symbolen cirkumflex (^), till exempel =A1^A2. Ange det med SKIFT+¨. I cell F7 anger du =C3^C4.
A9: Visa mer information
A10: Nästa steg
A11: Mer information om formler, celler och områden
A12: Excel består av ett antal celler som är grupperade i rader och kolumner. Rader markeras med nummer och kolumner med bokstäver. Det finns fler än en miljon rader och 16 000 kolumner, och du kan ange formler och funktioner i alla.
A13: Formler kan innehålla cellreferenser, områden med cellreferenser, operatorer och konstanter. Följande är alla exempel på formler: =A1+B1 =10+20 =SUMMA(A1:A10)
A14: Som du märker använder vi SUMMA-funktionen i tredje exemplet ovan. En funktion är ett färdigt kommando som tar ett eller flera värden, beräknar dem på ett visst sätt och returnerar resultatet. Funktionen SUMMA tar till exempel cellreferenser eller områden du anger, och returnerar den totalsumman. I det här exemplet beräknas totalsumman för cellerna A1 till A10. Excel innehåller fler än 400 funktioner som du kan utforska på fliken Formler.
A15: Formler med funktioner inleds med ett likhetstecken, sedan funktionsnamnet följt av argument (värden som en funktion använder för beräkningar) inom parenteser.
A16: Du kan kontrollera en formel genom att trycka på RETUR. När du gör det kommer formeln att beräknas och resultatet visas i cellen. Du kan se formeln i formelfältet under menyfliksområdet, eller genom att trycka på F2 för att öppna redigeringsläget och se formeln direkt i cellen. Tryck på RETUR igen för att slutföra formeln och beräkna resultatet.
A17: Förklaring av formler
A18: =10+20 är en formel där 10 och 20 är konstanter och +-tecknet är operatorn.
A19: =SUMMA(A1:A10) är en formel där SUMMA är funktionsnamnet, inledande och avslutande parenteser innehåller formelns argument och A1:A10 är cellområdet funktionen utför beräkningar på.
A20: =SUMMA(A1:A10;C1:C10) är en formel där SUMMA är funktionsnamnet, inledande och avslutande parenteser innehåller formelns argument och A1:A10;C1:C10 är cellområden åtskilda med semikolon som funktionen utför beräkningar på.
A21: BRA ATT VETA: Konstanter är värden som du anger i celler och formler. Även om =10+20 kan ge samma resultat som = A1+B1 är konstanter ingen bra idé. Varför? På grund av att du inte enkelt kan se konstanten utan att först markera cellen och söka efter den. Det kan göra det svårare att göra ändringar senare. Det är mycket bättre att placera konstanterna i celler där de enkelt kan justeras, och sedan referera till dem i dina formler. Exempel: Markera den gula cellen med 12 nedan. Som du ser använde vi SUMMA-funktionen och ett cellområde. Vi skrev inte in ”4” eller ”8” direkt i formeln.
A22: Föregående
A23: Nästa
A24: Mer information på webben
A25: Använda Excel som en kalkylator
A26: Översikt över formler i Excel
A27: Excel-funktioner (efter kategori)
A28: Excel-funktioner (alfabetisk ordning)
A29: Kostnadsfria Excel-kurser online
J40: Värden
J41: 4
J42: 8
J43: =SUM(J41:J42) -> 12

Sheet Introduktion till funktioner
A1: Introduktion till funktioner
A2: Funktioner ger dig möjlighet att göra en mängd olika saker, som att utföra matematiska operationer, leta upp värden eller beräkna datum och tider. Vi testar några olika sätt att summera värden med funktionen SUMMA. | C2: Frukt | D2: Belopp | F2: Kött | G2: Belopp
A3: Under kolumnen Belopp för Frukt (cell D7) anger du =SUMMA(D3:D6), eller skriver =SUMMA( och sedan markerar området med musen och trycker på RETUR. Detta summerar värdena i cellerna D3, D4, D5 och D6. Resultatet ska bli 170. | C3: Äpplen | D3: 50 | F3: Nötkött | G3: 50
A4: Låt oss nu prova Autosumma. Markera cellen under kolumnen för Kött (cell G7) och gå till Formler > Autosumma > välj SUMMA. Som du ser anger Excel formeln åt dig automatiskt. Tryck på RETUR för att bekräfta. Funktionen Autosumma har alla de vanligaste funktionerna. | C4: Apelsiner | D4: 20 | F4: Kyckling | G4: 30
A5: Här är ett smart kortkommando. Markera cell D15 och tryck på Alt = och sedan RETUR. SUMMA anges automatiskt åt dig. | C5: Bananer | D5: 60 | F5: Fläsk | G5: 10
A6: Visa mer information | C6: Citroner | D6: 40 | F6: Fisk | G6: 50
A7: BONUSUPPGIFT Prova funktionen ANTAL med hjälp av något av de metoder som du redan har kikat på. Funktionen ANTAL räknar antalet celler i ett område som innehåller tal. | C7: SUMMA > | D7: =SUM(D3:D6) -> 170 | F7: SUMMA >
A8: Nästa steg
A9: Mer information om funktioner | C9: Vara | D9: Belopp | F9: Vara | G9: Belopp
A10: Gå till fliken Formler och bläddra igenom Funktionsbibliotek där funktioner visas efter kategori, exempelvis Text eller Datum/tid. Med Infoga funktion kan du söka efter funktioner efter namn och starta Funktionsguiden som hjälper dig att skapa din formel. När du börjar skriva ett funktionsnamn efter = aktiverar Excel IntelliSense som visar alla funktioner som börjar med bokstäverna du skriver in. När du hittar funktionen du vill använda trycker du på TABB. Excel sätter in funktionens namn och den inledande parentesen åt dig. Excel visar även valfria och obligatoriska argument. Nu ska vi detaljstudera ett antal funktioner. Funktionen SUMMA är konstruerad så här: | C10: Bröd | D10: 50 | F10: Bröd | G10: 50
A11: Om funktionen SUMMA kunde tala skulle den säga: Returnera summan av alla värden i cellerna D35 till D38 och alla i kolumn H. SUMMA är funktionsnamnet, D35:D38 är det första områdesargumentet (som nästan alltid obligatoriskt), och H:H är det andra områdesargumentet, avgränsat med semikolon. Vi provar en som inte kräver några argument. | C11: Munkar | D11: 100 | F11: Munkar | G11: 100
A12: Funktionen IDAG returnerar dagens datum. Den uppdateras automatiskt när Excel genomför beräkningar. | C12: Kakor | D12: 40 | F12: Kakor | G12: 40
A13: KOLLA IN DET HÄR Markera dessa celler. I det nedre högra hörnet av Excel-fönstret visas SUMMA: 170 i raden längst ned. Raden kallas för statusfältet och är ett annat sätt att snabbt hitta totalsumman och annan information om en markerad cell eller område. | C13: Tårtor | D13: 50 | F13: Tårtor | G13: 50
A14: VIKTIG INFORMATION Dubbelklicka på den här cellen. Du ser talet 100 längst ned. Även om det går att lägga till tal i en formel på det här sättet, så avråder vi från det om det inte är helt nödvändigt. Det här är en så kallad konstant, och det är lätt att glömma att den finns. Vi rekommenderar att du refererar till en annan cell i stället, t.ex. cell F51. På så sätt är den lätt att upptäcka och är inte dold inuti en formel. | C14: Pajer | D14: 20 | F14: Pajer | G14: 20
A15: Mer information på webben | C15: SUMMA > | F15: ANTAL >
A16: Allt om funktionen SUMMA
A17: Använda Autosumma för att summera tal
A18: Allt om funktionen ANTAL
A19: Kostnadsfria Excel-kurser online
A20: Tillbaka till början
A21: Nästa steg
C34: Frukt | D34: Belopp
C35: Äpplen | D35: 50
C36: Apelsiner | D36: 20
C37: Bananer | D37: 60
C38: Citroner | D38: 40
C39: SUMMA > | D39: =SUM(D35:D38) -> 170
C44: Vara | D44: Belopp
C45: Bilar | D45: 20
C46: Lastbilar | D46: 10
C47: Cyklar | D47: 10
C48: Skridskor | D48: 40
D50: Summa: | F50: Ytterligare värden: | G50: Nya totalsumma
D51: =SUM(D45:D48,100) -> 180 | F51: 100 | G51: =SUM(D45:D48,F51) -> 180

Sheet MEDEL
A1: Funktionen MEDEL
A2: Använd funktionen MEDEL för att hämta medelvärdet av talen i ett cellområde. | C2: Frukt | D2: Belopp | F2: Kött | G2: Belopp
A3: Klicka på cell D7 och använd Autosumma för att lägga till en MEDEL-funktion. | C3: Äpplen | D3: 50 | F3: Nötkött | G3: 50
A4: Markera cell G7 och mata in en MEDEL-funktion genom att skriva =MEDEL(G3:G6). | C4: Apelsiner | D4: 20 | F4: Kyckling | G4: 30
A5: I cell D15 kan du använda guiden Autosumma eller skriva in ytterligare en MEDEL-funktion för hand. | C5: Bananer | D5: 60 | F5: Fläsk | G5: 10
A6: KOLLA IN DET HÄR Markera ett antal siffror och titta i statusfältet för att se medelvärdet. | C6: Citroner | D6: 40 | F6: Fisk | G6: 50
A7: Aktivera föregående blad | C7: MEDEL > | F7: MEDEL >
A8: Gå till nästa blad
A9: BONUSUPPGIFT Prova att använda MEDIAN eller TYPVÄRDE här. MEDIAN returnerar ett värde från mitten av datauppsättningen, medan TYPVÄRDE returnerar det värde som är vanligast förekommande. | C9: Vara | D9: Belopp | F9: Vara | G9: Belopp
A10: Länkar till er information på webben | C10: Bröd | D10: 50 | F10: Bröd | G10: 50
A11: Klicka här om du vill lära dig allt om funktionen MEDEL från webben | C11: Munkar | D11: 100 | F11: Munkar | G11: 100
A12: Klicka här om du vill lära dig allt om funktionen MEDIAN från webben | C12: Kakor | D12: 40 | F12: Kakor | G12: 40
A13: Klicka här om du vill lära dig allt om funktionen TYPVÄRDE från webben | C13: Tårtor | D13: 50 | F13: Tårtor | G13: 50
A14: Klicka här om du vill lära dig mer om kostnadsfria Excel-kurser från webben | C14: Pajer | D14: 20 | F14: Pajer | G14: 20
C15: MEDEL >

Sheet MIN och MAX
A1: Funktionerna MIN och MAX
A2: Använd funktionen MIN för att hämta minsta talet i ett cellområde. | C2: Frukt | D2: Belopp | F2: Kött | G2: Belopp
A3: Använd funktionen MAX för att hämta största talet i ett cellområde. | C3: Äpplen | D3: 50 | F3: Nötkött | G3: 50
A4: Markera cell D7 och använd guiden Autosumma för att lägga till en MIN-funktion. | C4: Apelsiner | D4: 20 | F4: Kyckling | G4: 30
A5: Markera cell G7 och mata in en MAX-funktion genom att skriva =MAX(G3:G6). | C5: Bananer | D5: 60 | F5: Fläsk | G5: 10
A6: I cell D15 kan du använda guiden Autosumma eller skriva in en MIN- eller MAX-funktion för hand. | C6: Citroner | D6: 40 | F6: Fisk | G6: 50
A7: Mer information på webben | C7: MIN > | F7: MAX >
A8: Allt om funktionen MIN
A9: Allt om funktionen MAX | C9: Vara | D9: Belopp | F9: Vara | G9: Belopp
A10: Kostnadsfria Excel-kurser online | C10: Bröd | D10: 50 | F10: Bröd | G10: 50
A11: BRA ATT VETA Du kan använda MIN eller MAX med flera områden eller värden för att visa de större eller mindre av dessa värden, exempelvis =MIN(A1:A10;B1:B10) eller =MAX(A1:A10;B1), där B1 innehåller ett tröskelvärde (till exempel 10), vilket betyder att formeln inte returnerar ett resultat som är mindre än 10. | C11: Munkar | D11: 100 | F11: Munkar | G11: 100
C12: Kakor | D12: 40 | F12: Kakor | G12: 40
C13: Tårtor | D13: 50 | F13: Tårtor | G13: 50
C14: Pajer | D14: 20 | F14: Pajer | G14: 20
C15: MIN eller MAX > | G15: =MIN(G10:G14,10) -> 10

Sheet Datum och tid
A1: Datumfunktioner
A2: Excel kan ge dig aktuellt datum baserat på din dators nationella inställningar. Du kan även lägga till och dra ifrån datum.
A3: Ta en titt på funktionen IDAG, som ger dig dagens datum. Detta är dynamiska, eller obeständiga, funktioner så när du öppnar arbetsboken nästa dag visas morgondagens datum. Ange =IDAG() i cell D6.
A4: Subtrahera datum – Ange din nästa födelsedag i formatet ÅÅ-MM-DD i cell D7 och låt Excel berätta hur många dagar det är kvar med hjälp av =D7-D6 i cell D8.
A5: Lägga till datum – Antag att du vill veta vilka datum en faktura förfaller, eller när du ska lämna tillbaka en lånebok till biblioteket. Du kan lägga till dagar till ett datum för att ta reda på det. I cell D10 anger du ett slumpmässigt antal dagar. I cell D11 anger vi =D6+D10 för att beräkna förfallodatum utifrån dagens datum. | C5: Datumfunktioner
A6: BRA ATT VETA Excel håller koll på datum och tider baserat på antalet dagar sedan 1900 januari 1. Tid beräknas i form av delar av en dag, i minuter. 2017-01-01 12:30 lagras faktiskt som 42736,5208. Om tid eller datum visas som ett sådant tal kan du trycka på Ctrl + 1 > Tal och välja ett datum- eller tidsformat. | C6: Dagens datum: | F6: =IF(D6=TODAY(),"Det stämmer!","") -> 
A7: VIKTIG INFORMATION Om du inte vill att Excel ska visa ett negativt tal, eftersom du inte har angivit födelsedag ännu, kan du använda en OM-funktion: =OM(D7="";"";D7-D6) som betyder ”om D7 är lika med ingenting, visa ingenting, annars visas D7 minus D6”. | C7: Din födelsedag:
A8: Tidsfunktioner | C8: Dagar till din födelsedag: | D8: =D7-D6 -> 0
A9: Excel kan ge dig aktuell tid baserat på din dators nationella inställningar. Du kan även lägga till och dra ifrån tid. Kanske behöver du hålla reda på hur många timmar en anställd arbetat varje vecka för att beräkna lön och övertid.
A10: I cell D28 skriver du in =NU(), vilket ger aktuellt klockslag (som uppdateras varje gång Excel utför beräkningar). Om du behöver ändra tidsformatet väljer du Ctrl+1 > Tal > Tid och väljer önskat format. | C10: Tidsfrist dagar:
A11: Summera timmar – I cell D36 har vi angett =((D35-D32)-(D34-D33))*24 som beräknar någons start- och sluttid, och drar ifrån lunchrasten. *24 i slutet av formeln konverterar Excels interna representation (bråkdelar av en dag) till timmar. Du måste utforma cellen som ett Tal. Detta gör du genom att gå till Start > Format > Celler (Ctrl+1) > Tal > Tal > 2 decimaler. | C11: Förfallodatum: | D11: =D6+D10 -> 00:00:00
A12: Om den här formeln kan prata skulle den säga ”ta Tid in och subtrahera först Tid ut och därefter Lunch ut/Lunch in, multiplicera med 24 för att konvertera till timmar”, eller =((TidIn-TidUt)-(LunchIn - LunchUt))*24.
A13: Föregående
A14: Nästa
A15: Mer information på webben
A16: Allt om IDAG-funktionen
A17: Allt om NU-funktionen
A18: Allt om DATUM-funktionen
A19: Kostnadsfria Excel-kurser online
C27: Tidsfunktioner
C28: Aktuell tid:
C31: Total arbetstid
C32: Tid in: | D32: 08:00:00
C33: Lunch ut: | D33: 12:00:00
C34: Lunch in: | D34: 13:00:00
C35: Tid ut: | D35: 17:00:00
C36: Timmar totalt: | D36: =((D35-D32)-(D34-D33))*24 -> 8
C45: Statiskt datum och tid
C46: Datum: | D46: 2017-09-27
C47: Tid: | D47: 08:52:00

Sheet Sammanfoga text och tal
A1: Sammanfoga text från olika celler
A2: Det finns många skäl till att sammanfoga text som finns i olika celler. Ett vanligt exemplet är att vilja kombinera för- och efternamn som fullständiga namn eller på något annat sätt. Som tur är kan vi enkelt göra det i Excel med hjälp av et-tecknet (&), som du matar in med SKIFT+6. | C2: Förnamn | D2: Efternamn | E2: Efternamn, Förnamn | F2: Fullständigt namn
A3: I cell E3 anger du =D3&C3 för att sammanfoga efter- och förnamn. | C3: Selma | D3: Svensson | E3: =D3&", "&C3 -> Svensson, Selma | F3: =C3&" "&D3 -> Selma Svensson
A4: NybergSelma ser dock inte så bra ut. Vi måste lägga till ett kommatecken och ett blanksteg. Det gör vi genom att använda citattecken för att skapa en ny textsträng. Ange =D3&”, ”&C3. &”, ”& sätter in ett komma och ett blanksteg mellan texten från cellerna. | C4: Anthon | D4: Nyberg
A5: För att bilda ett fullständig namn, sammanfogar vi för- och efternamn och sätter in ett blanksteg men hoppar över kommatecknet. Skriv in =C3&” ”&D3 i F3. | C5: Jan | D5: Mattsson
A6: Visa mer information | C6: Mikaela | D6: Johansson
A7: Nästa | C7: Staffan | D7: Lindgren
A8: Kombinera text och tal | C8: Mattias | D8: Nilsson
A9: Förutom att sammanfoga text med text kan & användas för att sammanfoga text och siffror Titta på cellerna C28:D29. Se du att datum och tid finns i olika celler? Du kan sammanfoga dem med &-symbolen precis som i cellerna C32:C33, men ser det inte lite konstigt ut? Tyvärr vet inte Excel hur du vill formatera tal, och bryter istället ner dem i det mest grundläggande formatet, vilket är datumserie i detta fall. Vi måste uttryckligen tala om för Excel hur taldelen av formeln ska formateras, så att textsträngen får det utseende du önskar. Du kan använda funktionen TEXT och en formatkod. | C9: Viktor | D9: Hedlund
A10: I cell C36 anger du =C28&" "&TEXT(D28;"ÅÅÅÅ-MM-DD"). ÅÅÅÅ-MM-DD är den svenska formatkoden för år-månad-dag, exempelvis 2017-09-25. | C10: Gabriella | D10: Eriksson
A11: I cell C37 anger du =C29&" "&TEXT(D29;"TT:MM"). TT:MM är svensk formatkod för timmar:minuter, exempelvis 14:30.
A12: KOLLA IN DET HÄR Formler, särskilt om de är stora, kan ibland vara svåra att läsa, men du kan använda blanksteg för att dela upp dem i delar: =C28 & " " & TEXT(D28;"ÅÅÅÅ-MM-DD")
A13: VÄRT ATT UTFORSKA Om du inte vet vilket format du ska använda kan du använda Ctrl + 1 > Tal för att formatera cellens innehåll. Välj sedan alternativet Anpassat. Du kan kopiera formatkoden som visas till formeln.
A14: Mer information på webben
A15: Allt om funktionen TEXT
A16: Kombinera text och tal
A17: Kostnadsfria Excel-kurser online
C27: Använda text och tal
C28: Dagens datum: | D28: =TODAY() -> 2021-10-19
C29: Aktuell tid: | D29: =NOW() -> 44488.48499
C31: Sammanfoga text och tal
C32: =C28&" "&D28 -> Dagens datum: 44488
C33: =C29&" "&D29 -> Aktuell tid: 44488.4849946759
C35: Formatera text och tal
C36: =C28 &" "& TEXT(D28,"ÅÅÅÅ-MM-DD") -> Dagens datum: Tuesday-10-19
C37: =C29&" "&TEXT(D29,"TT:MM") -> Aktuell tid: TT:10

Sheet OM-uttryck
A1: OM-uttryck
A2: Med hjälp av OM-uttryck kan du göra logiska jämförelser mellan villkor. En OM-sats är vanligtvis konstruerad att utföra något om ett villkor är sant, i annat fall utförs något annat. Formler kan returnera text, ett värde eller fler beräkningar.
A3: Skriv in =OM(C9="Äpple";SANT;FALSK) i cell D9. Rätt svar är SANT.
A4: Kopiera D9 till D10. Svaret här ska vara FALSKT, eftersom en apelsin inte är ett äpple.
A5: Prova ett annat exempel genom att studera formeln i cell D12. Vi började med =OM(C12 < 100;”Mindre än 100”;”Större än eller lika med 100”). Vad händer om du anger ett tal som är större än 100 i cell C12?
A6: VIKTIG INFORMATION SANT och FALSKT behöver till skillnad från andra ord i Excel-formler inte anges med citattecken, och Excel kommer automatiskt att använda versaler. Tal anges inte heller med citattecken. Vanlig text, som Ja eller Nej måste anges med citattecken: =OM(C9="Äpple";"Ja";"Nej")
A7: Visa mer information
A8: Nästa | C8: OM-uttryck
A9: OM-uttryck med en annan funktion | C9: Äpple
A10: OM-uttryck kan även tvinga fram ytterligare beräkningar som utförs om ett visst villkor uppfylls. Vi kommer att utvärdera en cell för att avgöra om moms ska tas ut och beräkna om villkoret är sant. | C10: Apelsin
A11: I cell F33 har vi skrivit in =OM(E33="Ja";F31*Moms;0) där vi angivit Moms som ett Namngivet område med värdet 0,0825. Formeln säger om cellen E33 är lika med Ja ska cell F31 multipliceras med Moms, annars returneras 0. Studera vad som händer med uträkningen om du ändrar Ja till Nej i cell E33.
A12: Därefter har vi lagt till ett OM-uttryck för att beräkna frakt om så är nödvändigt. I cell F35 visas =OM(E35="Ja";SUMMA(D28:D29)*1,25;0). Detta betyder att ”om värdet i cell E35 är Ja ska summan i kolumnen Antal i tabellen ovan multipliceras med 1,25, annars returneras 0”. | C12: 50 | D12: =IF(C12<100,"Mindre än 100","Större än eller lika med 100") -> Mindre än 100
A13: Ändra 1,25 till ”Frakt” i formeln i cell F35. När du börjar skriva kommer Excel hitta det åt dig automatiskt. När så sker trycker du på TABB. Det här är ett Namngivet område som vi har angett i Formler > Definiera namn. Det betyder att om du måste uppdatera fraktkostnaden behöver du bara ändra på ett ställe, och i övrigt använda namnet Frakt i arbetsboken.
A14: BRA ATT VETA När du skapar en formel placerar Excel automatiskt färgade kantlinjer runt alla områden som refereras till i formeln, och motsvarande områden i formeln får samma färg. Du kan se detta om du markerar cellen F33 och trycker på F2 för att redigera formeln.
A15: EXPERTTIPS Med hjälp av Namngivna områden kan du definiera villkor eller värden på ett ställe och sedan återanvända dem i arbetsboken. Du kan se alla namngivna områden i den här arbetsboken genom att gå till Formler > Namnhanteraren. Klicka här för att läsa mer.
A16: Föregående
A17: Nästa
A18: Mer information på webben
A19: Allt om OM-funktionen
A20: Allt om IFS-funktionen
A21: Avancerade OM-uttryck
A22: Kostnadsfria Excel-kurser online
C27: Vara | D27: Antal | E27: Kostnad | F27: Summa
C28: Pryl | D28: 2 | E28: 9.76 kr | F28: ='OM-uttryck'!$E$28:$E$29*'OM-uttryck'!$D$28:$D$29 -> 19.52 kr
C29: Grej | D29: 3 | E29: 3.42 kr | F29: ='OM-uttryck'!$E$28:$E$29*'OM-uttryck'!$D$28:$D$29 -> 10.26 kr
D31: Delsumma | E31: =SUM('OM-uttryck'!$E$28:$E$29) -> 13.18 kr | F31: =SUM('OM-uttryck'!F28:F29) -> 29.78 kr
D33: Moms? | E33: Ja | F33: =IF(E33="Ja",F31*Moms,0) -> 2.46 kr
D35: Frakt? | E35: Ja | F35: =IF(E35="Ja",SUM(D28:D29)*1.25,0) -> 6.25 kr
D37: Summa | F37: =SUM(F33,F31,F35) -> 38.48 kr

Sheet LETARAD
A1: LETARAD
A2: LETARAD är en av de mest använda funktionerna i Excel (och en av våra favoriter också!). Med LETARAD kan du söka efter ett värde i en kolumn till vänster och returnera information i en kolumn till höger om en matchning hittas. LETARAD säger:
A3: =HITTARAD(A1;B:C;2;FALSKT)
A4: Vad vill du leta efter?
A5: Om du hittar det, hur många kolumner till höger ska värdet hämtas?
A6: Var vill du leta efter det?
A7: Vill du ha en exakt eller ungefärlig matchning?
A8: I cell D22 anger du =LETARAD(C22;C17:D20;2;FALSKT). Rätt svar för Äpplen är 50. LETARAD sökte Äpplen, hittade det och gick sedan en kolumn till höger och returnerade värdet.
A9: Prova själv i avsnittet Kött i cell G22. Förhoppningsvis har du skrivit =LETARAD(F22;F17:G20;2;FALSKT).
A10: EXPERIMENT Prova att välja olika objekt i listrutorna. Observera att resultatcellerna uppdaterar sig själva med nya värden.
A11: Visa mer information
A12: Nästa
A13: LETARAD och #SAKNAS
A14: Du kommer oundvikligen att stöta på en situation där LETARAD inte hittar det du söker, och därför returnerar ett fel (#SAKNAS). Ibland beror det på att sökvärdet helt enkelt inte finns, eller också kan det hända att referenscell inte har något värde ännu.
A15: Om du vet att sökvärdet finns, men vill dölja felet om referenscellen är tom, kan du använda ett OM-uttryck. I det här fallet ska vi använda vår befintliga LETARAD-formel så här i cell D43: =OM(C43="";"";LETARAD(C43;C37:D41;2;FALSKT)) Det betyder att om cellen C43 är tom (””), returnera ingenting, annars returneras LETARAD-resultatet. Observera den andra avslutande parentes i slutet av formeln. Den stänger OM-satsen.
A16: Om du inte vet om sökvärdet finns, men ändå vill dölja felet #SAKNAS, kan du använda en funktion som kallas OMFEL i cell G43: =OMFEL(LETARAD(F43;F37:G41;2;FALSKT);""). OMFEL fungerar så att LETARAD-resultatet visas om det är ett giltigt värde, annars visas ingenting (””). Vi visade inget här (””), men du kan även använda tal (0, 1, 2 och så vidare) eller text, till exempel ”formeln är inte korrekt”. | C16: Frukt | D16: Belopp | F16: Kött | G16: Belopp
A17: VIKTIG INFORMATION OMFEL är en så kallas generell felhanterare, vilket innebär att den döljer alla eventuella fel som kan förekomma i formeln. Detta kan orsaka problem om Excel försöker meddela att formeln innehåller en faktiskt fel som måste åtgärdas. En tumregel är att inte använda felhanterare i formler förrän du är helt säker på att de fungerar korrekt. | C17: Äpplen | D17: 50 | F17: Nötkött | G17: 50
A18: Föregående | C18: Apelsiner | D18: 20 | F18: Kyckling | G18: 30
A19: Nästa | C19: Bananer | D19: 60 | F19: Fläsk | G19: 10
A20: Mer information på webben | C20: Citroner | D20: 40 | F20: Fisk | G20: 50
A21: Allt om LETARAD-funktionen
A22: Allt om INDEX/PASSA-funktionerna | C22: Äpplen | F22: Fläsk
A23: Allt om OMFEL-funktionen
A24: Skapa pivottabeller för att analysera kalkylbladsdata
A25: Kostnadsfria Excel-kurser online
C35: Om funktionen SUMMA i cell D42 kunde tala skulle det låta så här: Summera värdena i cellerna D38, D39, D40 och D41.
C36: Vara | D36: Belopp | F36: Vara | G36: Belopp
C37: Bröd | D37: 50 | F37: Bröd | G37: 50
C38: Munkar | D38: 100 | F38: Munkar | G38: 100
C39: Kakor | D39: 40 | F39: Kakor | G39: 40
C40: Tårtor | D40: 50 | F40: Tårtor | G40: 50
C41: Pajer | D41: 20 | F41: Pajer | G41: 20
D43: =VLOOKUP(C43,C37:D41,2,FALSE) ->  | F43: Bakverk | G43: =IFERROR(VLOOKUP(F43,F37:G41,2,FALSE),"") -> 

Sheet Villkorsstyrda funktioner
A1: Villkorsstyrda funktioner – SUMMA.OM
A2: Med villkorsstyrda funktioner kan du summera, ta fram medelvärden eller räkna ut min eller max för ett område baserat på villkor eller kriterier som du anger. Exempelvis: hur många av frukterna i listan är äpplen? Eller: hur många av apelsinerna kommer från Florida? | C2: Frukt | D2: Belopp | F2: Frukt | G2: Typ | H2: Belopp | Z2: Frukt | AB2: Äpplen | AD2: Apelsiner | AF2: Bananer | AH2: Citroner
A3: SUMMA.OM kan summera ett område baserat på ett villkor som gäller ett annat område, till exempel hur många äpplen du har. Markera cell D17 och skriv in =SUMMA.OM(C3:C14;C17;D3:D14). SUMMA.OM är konstruerad så här: | C3: Äpplen | D3: 50 | F3: Äpplen | G3: Fuji | H3: 50 | Z3: Äpplen | AB3: Fuji | AD3: Florida | AF3: Cavendish | AH3: Rough
A4: =SUMMA.OM(C3:C14;C17;D3:D14) | C4: Apelsiner | D4: 20 | F4: Apelsiner | G4: Florida | H4: 20 | Z4: Apelsiner | AB4: Honeycrisp | AD4: Navel | AF4: Lady Finger | AH4: Eureka
A5: Vilket område du vill titta på? | C5: Bananer | D5: 60 | F5: Bananer | G5: Cavendish | H5: 60 | Z5: Bananer
A6: Vilket värde (text eller tal) vill du leta efter? | C6: Citroner | D6: 40 | F6: Citroner | G6: Rough | H6: 40 | Z6: Citroner
A7: Vilket område vill du summera för varje matchat värde? | C7: Äpplen | D7: 50 | F7: Äpplen | G7: Honeycrisp | H7: 50
A8: SUMMA.OMF är detsamma som SUMMA.OM, men du kan använda flera villkor. I det här exemplet kan du söka efter Frukt och Typ, inte bara efter Frukt. Markera cell H17 och skriv in =SUMMA.OMF(H3:H14;F3:F14;F17;G3:G14;G17). SUMMA.OMF är konstruerad så här: | C8: Apelsiner | D8: 20 | F8: Apelsiner | G8: Navel | H8: 20
A9: =SUMMA.OMF(H3:H14;F3:F14;F17;G3:G14;G17) | C9: Bananer | D9: 60 | F9: Bananer | G9: Lady Finger | H9: 60
A10: Vilket område vill du summera? | C10: Citroner | D10: 40 | F10: Citroner | G10: Eureka | H10: 40
A11: Det här är det första området att genomsöka efter matchningar | C11: Äpplen | D11: 50 | F11: Äpplen | G11: Honeycrisp | H11: 50
A12: Det här är villkoret för den första matchningen | C12: Apelsiner | D12: 20 | F12: Apelsiner | G12: Navel | H12: 20
A13: Det här är det andra området att genomsöka efter matchningar | C13: Bananer | D13: 60 | F13: Bananer | G13: Cavendish | H13: 60
A14: Det här är villkoret för den andra matchningen | C14: Citroner | D14: 40 | F14: Citroner | G14: Eureka | H14: 40
A15: EXPERTTIPS Alla Frukt- och Typ-celler har en listruta där du kan välja olika frukter. Prova själv och observera hur formlerna uppdateras automatiskt.
A16: Visa mer information | C16: Frukt | D16: SUMMA.OM | F16: Frukt | G16: Typ | H16: SUMMA.OMF
A17: Nästa steg | C17: Äpplen | F17: Apelsiner | G17: Florida
A18: Villkorsstyrda funktioner – ANTAL.OM
A19: Med ANTAL.OM och ANTAL.OMF kan du räkna antalet värden i ett område baserat på ett villkor du anger. De skiljer sig en aning från de andra OM- och OMF-funktionerna då de bara har ett villkorsområde och villkor. De utvärderar inte ett område och summerar i ett annat område.
A20: Markera cell D64 och skriv in =ANTAL.OM(C50:C61;C64). ANTAL.OM är konstruerad så här:
A21: =ANTAL.OM(C50:C61;C64)
A22: Vilket område du vill titta på?
A23: Vilket värde (text eller tal) vill du leta efter?
A24: ANTAL.OMF är detsamma som ANTAL.OM, men du kan använda flera villkor. I det här exemplet kan du söka efter Frukt och Typ, inte bara efter Frukt. Markera cell H64 och skriv =ANTAL.OMF(F50:F61;F64;G50:G61;G64). ANTAL.OMF är konstruerad så här:
A25: =ANTAL.OMF(F50:F61;F64;G50:G61;G64)
A26: Det här är det första området att räkna
A27: Det här är villkoret för den första matchningen
A28: Det här är det andra området att räkna
A29: Det här villkor för den andra matchningen
A30: Visa mer information
A31: Nästa
A32: Fler villkorsstyrda funktioner
A33: Du har redan sett SUMMA.OM, SUMMA.OMF, ANTAL.OM och ANTAL.OMF. Nu kan du på egen hand kika på andra funktioner, exempelvis MEDEL.OM/OMF, MAXIFS och MINIFS. De är konstruerade på samma sätt, så när du angivit en formel är det bara att ersätta funktionsnamnet med det du vill använda. Vi har angivit alla funktioner du behöver för cell E106, så att du kan kopiera och klistra in de här, eller skriva in dem för hand som övning. SUMMA.OM =SUMMA.OM(C92:C103;C106;E92:E103) SUMMA.OMF =SUMMA.OMF(E92:E103;C92:C103;C106;D92:D103;D106) MEDEL.OM =MEDEL.OM(C92:C103;C106;E92:E103) MEDEL.OMF =MEDEL.OMF(E92:E103;C92:C103;C106;D92:D103;D106) ANTAL.OM =ANTAL.OM(C92:C103;C106) ANTAL.OMF =ANTAL.OMF(C92:C103;C106;D92:D103;D106) MAXIFS =MAXIFS(E92:E103;C92:C103;C106;D92:D103;D106) MINIFS =MINIFS(E92:E103;C92:C103;C106;D92:D103;D106)
A34: Visa mer information
A35: Nästa
A36: SUMMA.OM med en värdeargument
A37: Här är ett exempel på funktionen SUMMA.OM som använder större än (>) för att hitta alla värden större än en viss summa:
A38: =SUMIF(D118:D122,">=50") -> 200
A39: Summera några värden baserat på detta villkor:
A40: Titta igenom dessa celler …
A41: … och summera om värdet är större än 50.
A42: OBS! Om du märker att du skapar många villkorsformler kan en bättre lösning vara att använda en pivottabell. Den här artikeln om pivottabeller innehåller mer information.
A43: Mer information på webben
A44: Allt om funktionen SUMMA.OM
A45: Allt om funktionen SUMMA.OMF
A46: Allt om funktionen ANTAL.OM
A47: Allt om funktionen ANTAL.OMF
A48: Allt om funktionen MEDEL.OM
A49: Allt om funktionen MEDEL.OMF | C49: Frukt | D49: Belopp | F49: Frukt | G49: Typ | H49: Belopp
A50: Allt om funktionen MINIFS | C50: Äpplen | D50: 50 | F50: Äpplen | G50: Fuji | H50: 50
A51: Allt om funktionen MAXIFS | C51: Apelsiner | D51: 20 | F51: Apelsiner | G51: Florida | H51: 20
A52: Skapa en listruta | C52: Bananer | D52: 60 | F52: Bananer | G52: Cavendish | H52: 60
A53: Kostnadsfria Excel-kurser online | C53: Citroner | D53: 40 | F53: Citroner | G53: Rough | H53: 40
A54: Tillbaka till början | C54: Äpplen | D54: 50 | F54: Äpplen | G54: Honeycrisp | H54: 50
A55: Nästa | C55: Apelsiner | D55: 20 | F55: Apelsiner | G55: Navel | H55: 20
C56: Bananer | D56: 60 | F56: Bananer | G56: Lady Finger | H56: 60
C57: Citroner | D57: 40 | F57: Citroner | G57: Eureka | H57: 40
C58: Äpplen | D58: 50 | F58: Äpplen | G58: Honeycrisp | H58: 50
C59: Apelsiner | D59: 20 | F59: Apelsiner | G59: Navel | H59: 20
C60: Bananer | D60: 60 | F60: Bananer | G60: Cavendish | H60: 60
C61: Citroner | D61: 40 | F61: Citroner | G61: Eureka | H61: 40
C63: Frukt | D63: ANTAL.OM | F63: Frukt | G63: Typ | H63: ANTAL.OMF
C64: Äpplen | D64: =COUNTIF(C50:C61,C64) -> 3 | F64: Apelsiner | G64: Florida | H64: =COUNTIFS(F50:F61,F64,G50:G61,G64) -> 1
C91: Frukt | D91: Typ | E91: Belopp
C92: Äpplen | D92: Fuji | E92: 50
C93: Apelsiner | D93: Florida | E93: 20
C94: Bananer | D94: Cavendish | E94: 60
C95: Citroner | D95: Rough | E95: 40
C96: Äpplen | D96: Honeycrisp | E96: 50
C97: Apelsiner | D97: Navel | E97: 20
C98: Bananer | D98: Lady Finger | E98: 60
C99: Citroner | D99: Eureka | E99: 40
C100: Äpplen | D100: Honeycrisp | E100: 50
C101: Apelsiner | D101: Navel | E101: 20
C102: Bananer | D102: Cavendish | E102: 60
C103: Citroner | D103: Eureka | E103: 40
C105: Frukt | D105: Typ | E105: Prova
C106: Citroner | D106: Eureka | E106: =AVERAGEIFS(E92:E103,C92:C103,C106,D92:D103,D106) -> 40
C117: Artikel | D117: Belopp
C118: Bröd | D118: 50
C119: Munkar | D119: 100
C120: Kakor | D120: 40
C121: Tårtor | D121: 50
C122: Pajer | D122: 20
D123: =SUMIF(D118:D122,">=50") -> 200

Sheet Funktionsguiden
A1: Låt Funktionsguiden vägleda dig
A2: Om du vet namnet på funktionen du vill använda, men du är osäker på hur den skrivs kan du låta Funktionsguiden hjälpa dig.
A3: Markera cell D10 och gå till Formler > Infoga funktion > skriv LETARAD i rutan Sök efter funktion och tryck på Kör. När du ser LETARAD markerat klickar du på OK längst ned. När du markerar en funktion i listan visar Excel dess syntax.
A4: Ange sedan funktionsargument i respektive textrutor. Varje argument du anger utvärderas och resultat visas längst ned. För varje avsnitt visas villkoren för varje argument längst ned i dialogrutan. När du är nöjd och trycker på OK anger Excel formeln åt dig. | C4: Frukt | D4: Belopp
A5: KOLLA IN DET HÄR Förhoppningsvis har du skrivit =LETARAD(C10;C5:D8;2;FALSKT). | C5: Äpplen | D5: 50
A6: BRA ATT VETA Du kan ange referenser till celler och cellområden eller markera dem med musen. | C6: Apelsiner | D6: 20
A7: BRA ATT VETA När du skriver in ett argument visas en beskrivning av argumentet längre ned i formuläret, ovanför formelns resultat. | C7: Bananer | D7: 60
A8: Föregående | C8: Citroner | D8: 40
A9: Nästa
A10: Mer information på webben | C10: Äpplen | D10: =VLOOKUP(C10,C5:D8,2,FALSE) -> 50
A11: Översikt över formler i Excel
A12: Excel-funktioner (efter kategori)
A13: Excel-funktioner (alfabetisk ordning)
A14: Kostnadsfria Excel-kurser online

Sheet Fel i formler
A1: Rätta till fel i formler
A2: Vid något tillfälle kommer du att träffa på en formel som innehåller ett fel, vilket Excel visar med #ErrorName. Fel kan vara användbara eftersom de pekar ut när något inte fungerar som tänkt, men de kan vara svåra att åtgärda. Som tur är finns det flera alternativ som hjälper dig att reda på orsaken till felet och åtgärda det.
A3: Felkontroll – Gå till Formler > Felkontroll. En dialogruta som beskriver möjliga orsaker till det felet du råkat ut för visas. I cell D9 orsakas felet #SAKNAS av att det inte finns något värde som matchar ”Äpple”. Du kan lösa detta genom att använda ett värde som finns, genom att dölja felet med OMFEL, eller bara ignorera det eftersom det försvinner när du använder ett värde som finns. | C3: Frukt | D3: Belopp
A4: Om du klickar på Hjälp med det här felet öppnas hjälpavsnittet som handlar om det aktuella felmeddelandet. Om du klickar på Visa beräkningssteg visas dialogrutan Utvärdera formel. | C4: Äpplen | D4: 50
A5: Varje gång du klickar på Utvärdera går Excel igenom formeln ett avsnitt i taget. Du får inte alltid veta vad som är fel, men du får veta var felet ligger. Kika på hjälpavsnittet för att undersöka närmare var felet i din formel finns. | C5: Apelsiner | D5: 20
A6: EXPERIMENT Vad är felet här? Tips: Vi vill ta reda på objektens totala SUMMA. | C6: Bananer | D6: 60
A7: BRA ATT VETA Klicka på Alternativ för att ange villkor för när fel i Excel ska visas eller ignoreras. | C7: Citroner | D7: 40
A8: Föregående
A9: Nästa | C9: Äpple | D9: =VLOOKUP(C9,C3:D7,2,FALSE) -> 
A10: Mer information på webben
A11: Hitta fel i formler
A12: Hur du undviker fel i formler
A13: Utvärdera en kapslad formel ett steg i taget
A14: Kostnadsfria Excel-kurser online
C30: Frukt | D30: Belopp
C31: Äpplen | D31: 50
C32: Apelsiner | D32: 20
C33: Bananer | D33: 60
C34: Citroner | D34: 40
C36: Summa | D36: =sume(D31:D34) -> 

Sheet Läs mer
A1: Har du fler frågor om Excel?
A2: Tryck på ALT+C och skriv det du vill veta.
A3: Fortsätt. Det finns mer att lära sig med Excel:
A4: Community: Ställ frågor och få kontakt med andra Excel-användare.
A5: Vad mer är nytt? Office 365-prenumeranter får kontinuerliga uppdateringar och nya funktioner.
